bitfinex/quotes_ETHUSD_20220213
["timestamp","ask_amount","ask_price","bid_price","bid_amount"]
[1644773314704,0.9227846,2883.5,2883.4,0.66031213]
[1644773314905,0.9227846,2883.5,2883.2,0.66031213]
[1644773315306,0.9227846,2883.5,2883.2,0.56031213]
[1644773315508,0.9227846,2883.5,2883.2,0.00128442]
[1644773315708,1.7901646,2883.5,2883.2,0.00128442]
[1644773315908,2.6574646,2883.5,2882.9,0.00128442]
[1644773316110,1.7900846,2883.5,2882.9,0.00128442]
[1644773316408,1.7900846,2883.5,2883.2,0.01129936]
[1644773317260,1.9634846,2883.5,2882.9,0.00128442]
[1644773317454,1.9634846,2883.5,2883.2,0.01129936]
[1644773318055,0.38929826,2883.5,2883.2,0.01129936]
[1644773318254,0.21589826,2883.5,2883.2,0.01129936]
[1644773318455,0.21589826,2883.5,2882.9,0.00128442]
[1644773318655,0.21589826,2883.5,2883.2,0.01093129]
[1644773318854,0.38929826,2883.5,2883.2,0.01093129]
[1644773319255,0.21589826,2883.5,2883.2,0.01093129]
[1644773319654,0.21589826,2883.5,2882.9,0.86859442]
[1644773319856,0.21589826,2883.5,2883.2,0.01093129]
[1644773320515,0.00134035,2883.4,2883.2,0.01093129]
[1644773320907,0.00134035,2883.4,2882.9,1.19958442]
[1644773321105,0.00134035,2883.4,2883.2,0.01093135]
[1644773322104,0.00134035,2883.4,2882.9,2.06690442]
[1644773322305,0.00134035,2883.4,2883.2,0.01129942]
[1644773323306,0.00134035,2883.4,2883.0,0.00154921]
[1644773323507,0.00134035,2883.4,2883.2,0.01129942]
[1644773324456,0.00134035,2883.4,2883.1,0.86879921]
[1644773324863,0.00134035,2883.4,2883.2,0.01129942]
[1644773325657,0.86842412,2883.8,2883.1,0.00154921]
[1644773325858,0.86842412,2883.8,2883.2,0.01129942]
[1644773326058,0.86842412,2883.8,2883.2,0.87852942]
[1644773326260,0.00120412,2883.8,2883.3,0.00154921]
[1644773327059,0.00120412,2883.8,2883.4,0.01129912]
[1644773327459,0.86844412,2883.8,2883.4,0.01129912]
[1644773328105,0.86844412,2883.8,2883.0,0.00154921]
[1644773328301,0.1734,2883.7,2883.5,0.01129906]
[1644773328503,1.0407,2883.7,2883.5,0.01129906]
[1644773328900,0.8673,2883.7,2883.5,0.01129906]
[1644773329301,0.8673,2883.7,2883.0,0.00154921]
[1644773329500,1.73463,2883.7,2883.5,0.01129906]
[1644773330400,1.73463,2883.7,2883.1,0.00154921]
[1644773330604,1.7358456,2883.7,2883.1,0.00154921]
[1644773330801,1.7358456,2883.7,2883.5,0.01129906]
[1644773331303,0.3,2883.6,2883.5,0.01129906]
[1644773331506,0.82304378,2883.6,2883.5,0.01129906]
[1644773331752,0.86739,2883.5,2883.1,0.00154921]
[1644773331952,1.04079,2883.5,2883.4,0.01129912]
[1644773332152,0.0012156,2883.7,2883.4,0.01129912]
[1644773332153,0.0012156,2883.7,2883.4,0.82492543]
[1644773332354,0.0012156,2883.7,2883.5,0.81362631]
[1644773332552,0.8685556,2883.7,2883.4,0.01129912]
[1644773332753,0.9497148,2883.6,2883.4,0.01129912]
[1644773332952,0.9497148,2883.6,2882.9,0.00154921]
[1644773332953,0.86748,2883.5,2882.9,0.00154921]
[1644773333157,0.86748,2883.5,2883.4,0.01129912]
[1644773334054,2.60242,2883.5,2882.7,0.02025832]
[1644773334254,0.8674,2883.4,2882.8,0.79333801]
[1644773334454,1.0408,2883.4,2883.3,0.01129924]
[1644773334958,0.0012156,2883.7,2883.3,0.01129924]
[1644773335154,0.0012156,2883.7,2883.4,0.79333801]
[1644773335600,0.86731,2883.7,2883.5,0.79333801]
[1644773335804,0.86731,2883.7,2883.6,0.79333801]
[1644773336001,0.86731,2883.7,2883.3,0.79333801]
[1644773336201,1.73455,2883.7,2883.4,0.79333801]
[1644773336400,0.86724,2883.7,2883.5,0.79333801]
[1644773336599,0.86724,2883.7,2883.0,0.00154921]
[1644773336600,0.86736,2883.6,2883.0,0.00154921]
[1644773336799,0.86736,2883.6,2883.4,0.01060341]
[1644773336999,0.86736,2883.6,2883.5,0.80228136]
[1644773337600,1.73469,2883.6,2883.5,0.80228136]
[1644773338201,0.16046325,2883.6,2883.5,0.80228136]
[1644773339003,1.04175699,2883.9,2883.5,0.80228136]
[1644773339255,0.00120699,2883.9,2883.6,0.80228136]
[1644773339452,0.00120699,2883.9,2883.7,0.80228136]
[1644773339652,0.00120699,2883.9,2883.8,0.80228136]
[1644773340452,0.6996056,2884.5,2883.8,0.80228136]
[1644773340755,0.6996056,2884.5,2883.9,0.80228136]
[1644773340954,0.6996056,2884.5,2884.0,0.80228136]
[1644773341153,0.6996056,2884.5,2884.1,0.80228136]
[1644773341355,0.6996056,2884.5,2883.7,1.40624921]
[1644773341553,0.6996056,2884.5,2884.1,0.01064894]
[1644773341754,1.5666756,2884.5,2884.1,0.01064894]
[1644773341952,0.69839574,2884.4,2884.1,0.01064894]
[1644773342153,0.69839574,2884.3,2884.1,0.01064894]
[1644773342454,0.86827986,2884.5,2884.1,0.01064894]
[1644773342455,0.69839574,2884.2,2884.1,0.01064894]
[1644773342655,0.00120986,2884.5,2883.8,4.33655385]
[1644773342853,0.00120986,2884.5,2884.1,0.877589]
[1644773342854,0.67990457,2884.5,2884.1,0.877589]
[1644773343101,0.67990457,2884.5,2884.1,0.66274425]
[1644773343703,0.67990457,2884.5,2884.1,0.65209525]
[1644773343904,0.00120986,2884.5,2884.2,1.74445887]
[1644773344904,0.00120986,2884.5,2884.2,1.73381]
[1644773345104,0.00120986,2884.5,2884.2,1.74445568]
[1644773345503,1.1069222,2884.9,2884.2,1.74445568]
[1644773345705,1.1069222,2884.9,2884.2,0.87756568]
[1644773346110,0.86696,2884.8,2884.2,0.86692]
[1644773346304,0.86696,2884.8,2884.4,0.01064562]
[1644773346955,0.1733,2884.7,2884.4,0.01064562]
[1644773347250,1.04041,2884.7,2883.9,1.2429]
[1644773347653,1.04041,2884.7,2884.4,0.01064562]
[1644773347952,0.86707,2884.6,2884.4,0.01064562]
[1644773348149,1.73421,2884.6,2884.4,0.01064562]
[1644773348550,0.86714,2884.6,2883.7,0.83095791]
[1644773348860,0.86714,2884.6,2884.4,0.01064567]
[1644773349055,2.80104469,2884.5,2884.4,0.01064567]
[1644773349449,3.80104469,2884.5,2884.4,0.01064567]
[1644773349853,1.10142089,2884.2,2883.7,0.5294087]
[1644773350052,1.0405,2884.1,2883.7,0.5294087]
[1644773350254,0.8672,2884.1,2883.7,0.5294087]
[1644773350806,0.86723,2884.1,2883.7,0.5294087]
[1644773351204,0.86723,2884.1,2883.8,0.0106464]
[1644773351414,1.04052,2884.0,2883.8,0.0106464]
[1644773351805,0.86722,2884.0,2883.8,0.0106464]
[1644773352105,0.86722,2884.0,2883.7,0.5294087]
[1644773352305,0.86722,2884.0,2883.8,0.0106464]
[1644773353407,0.86722,2884.0,2883.7,0.5294087]
[1644773353607,0.86722,2884.0,2883.8,0.0106464]
[1644773353608,1.73463,2883.9,2883.8,0.0106464]
[1644773353808,3.46941,2883.9,2883.8,0.0106464]
[1644773354661,3.46941,2883.9,2883.4,0.00154921]
[1644773354861,1.83185092,2883.8,2883.7,0.01064646]
[1644773355062,1.04059,2884.0,2883.7,0.01064646]
[1644773355063,0.1733,2884.0,2883.7,0.01064646]
[1644773355261,0.86727,2883.9,2883.7,0.01064646]
[1644773355663,0.86727,2883.9,2883.4,0.00154921]
[1644773355664,0.86849134,2883.9,2883.4,0.00154921]
[1644773355863,0.00122134,2883.9,2883.4,0.00154921]
[1644773356067,0.00122134,2883.9,2883.7,0.01064656]
[1644773356268,0.1733,2883.8,2883.7,0.01064656]
[1644773356670,5.9743,2883.8,2883.7,0.01064656]
[1644773356867,5.9743,2883.8,2882.6,1.13189542]
[1644773356868,4.8,2883.7,2883.0,0.00154921]
[1644773357063,4.8,2883.7,2882.7,0.65973718]
[1644773357064,0.6744,2883.6,2882.7,0.65973718]
[1644773357263,0.6744,2883.6,2882.8,0.70233623]
[1644773357264,0.92801519,2883.4,2882.8,0.70233623]
[1644773357463,0.1734,2883.3,2882.8,0.70078702]
[1644773357664,0.1734,2883.3,2882.9,0.00154921]
[1644773358109,1.79550519,2883.4,2883.3,0.20120143]
[1644773358909,2.66292519,2883.4,2883.3,0.20120143]
[1644773359414,0.86749,2883.4,2883.3,0.20120143]
[1644773360410,4.29137739,2883.4,2883.3,0.20120143]
[1644773360815,4.46477739,2883.4,2883.3,0.20120143]
[1644773361010,1.04089,2883.4,2883.3,0.20120143]
[1644773361210,2.43433746,2883.4,2883.3,0.20120143]
[1644773361858,1.73495,2883.5,2883.3,0.20120143]
[1644773362062,1.73606273,2883.6,2883.3,0.20120143]
[1644773362860,0.00121273,2883.6,2883.3,0.20120143]
[1644773363059,0.00121273,2883.6,2883.4,0.75613222]
[1644773363258,0.71540074,2883.6,2883.4,0.75613222]
[1644773364459,0.71540074,2883.6,2883.4,0.7667704]
[1644773365061,0.72831985,2883.5,2883.4,0.01063818]
[1644773365359,0.7283221,2883.5,2883.4,0.74207469]
[1644773365608,0.7283221,2883.5,2883.4,0.75271287]
[1644773366508,0.7283221,2883.5,2883.4,0.74207469]
[1644773367318,2.60201,2884.0,2883.4,0.74207469]
[1644773367319,0.84638657,2884.3,2883.4,1.04207469]
[1644773367514,0.70935603,2884.2,2883.5,0.74207469]
[1644773367912,0.70935603,2884.1,2883.6,0.00154921]
[1644773368110,0.70935603,2884.0,2883.6,0.01219785]
[1644773368311,0.0106458,2884.3,2883.7,0.74207469]
[1644773368312,0.70935603,2883.9,2883.7,0.74207469]
[1644773368512,0.0106458,2884.3,2883.7,0.74207469]
[1644773368711,0.70723385,2884.2,2883.7,0.74207469]
[1644773369354,0.70723385,2884.2,2883.6,0.75427291]
[1644773369555,0.70723385,2884.2,2883.6,1.41246088]
[1644773369858,0.70723385,2884.2,2883.6,1.71246088]
[1644773370054,0.70723385,2884.2,2883.7,2.47615469]
[1644773370261,0.70723385,2884.2,2883.8,0.74207469]
[1644773370453,0.66234176,2884.6,2883.8,0.74207469]
[1644773370454,0.70723385,2884.1,2883.8,0.74207469]
[1644773370653,0.01065045,2884.3,2883.8,0.74207469]
[1644773370654,0.70723385,2884.2,2883.8,0.74207469]
[1644773370855,0.70723385,2884.1,2883.9,0.74207469]
[1644773371054,0.01065045,2884.3,2884.0,0.74207469]
[1644773371255,0.70410509,2884.2,2884.1,0.74207469]
[1644773371854,0.70410509,2884.2,2883.8,0.74207469]
[1644773372053,0.70410509,2884.2,2883.9,0.74207469]
[1644773372253,0.70410509,2884.2,2884.0,0.74207469]
[1644773372457,0.70410509,2884.2,2884.1,0.74207469]
[1644773372855,0.01065083,2884.3,2883.7,0.74207469]
[1644773373105,0.01065083,2884.3,2883.7,1.60912469]
[1644773373306,0.01065083,2884.3,2883.9,5.0]
[1644773373506,0.01065083,2884.3,2884.0,0.501]
[1644773373802,0.70410509,2884.4,2884.0,1.801]
[1644773374002,0.0108407,2884.3,2884.0,1.801]
[1644773374202,0.0108407,2884.3,2884.0,0.801]
[1644773374402,0.0108407,2884.3,2884.0,3.70146]
[1644773374602,0.0108407,2884.3,2884.1,1.64541925]
[1644773374803,0.0108407,2884.3,2884.2,0.77857925]
[1644773375006,0.68978821,2884.3,2884.2,0.77857925]
[1644773375206,0.01084088,2884.3,2884.2,1.07857925]
[1644773375606,0.70062909,2884.3,2884.2,1.07857925]
[1644773376304,0.68978821,2884.3,2884.2,1.07857925]
[1644773377160,0.68978821,2884.3,2884.2,0.77857925]
[1644773377361,0.68978821,2884.3,2884.1,2.07857925]
[1644773377565,0.1733,2884.9,2884.2,0.77857925]
[1644773377762,0.1733,2884.9,2884.3,0.86683]
[1644773377763,0.01116142,2884.4,2884.3,0.86683]
[1644773377964,0.70064972,2884.4,2884.3,1.73367]
[1644773378161,0.70064972,2884.4,2884.3,2.51224925]
[1644773378361,0.01116142,2884.4,2884.3,2.51224925]
[1644773378561,0.67883984,2884.4,2884.3,3.51224925]
[1644773378761,0.00766059,2884.5,2884.3,3.51224925]
[1644773378963,0.00766059,2884.5,2884.4,0.78955039]
[1644773379362,0.68630951,2884.5,2884.4,0.78955039]
[1644773379862,0.1733,2885.0,2884.4,0.78955039]
[1644773380070,0.00766059,2884.6,2884.4,0.78955039]
[1644773380705,0.67859864,2884.5,2884.4,0.78955039]
[1644773380905,0.67859775,2884.5,2884.4,0.78955039]
[1644773381107,1.52810007,2885.2,2884.4,1.65639039]
[1644773381405,0.0077963,2884.6,2884.5,0.78955039]
[1644773381604,0.68618491,2884.6,2884.5,0.78955039]
[1644773382207,0.67838861,2884.6,2884.5,0.78955039]
[1644773382506,0.67831286,2884.6,2884.5,0.78955039]
[1644773382709,0.01129283,2884.7,2884.5,1.38955039]
[1644773382907,0.04516455,2885.1,2884.7,0.00085506]
[1644773383307,0.86685,2885.2,2884.7,0.00085506]
[1644773383506,0.67850348,2885.1,2884.7,0.00085506]
[1644773384354,1.54539348,2885.1,2884.7,0.00085506]
[1644773384552,0.67850348,2885.0,2884.7,0.00085506]
[1644773384752,0.67850348,2885.0,2884.7,0.79040545]
[1644773384953,0.68629978,2885.0,2884.7,0.00085506]
[1644773385155,0.67850348,2884.9,2884.7,0.00085506]
[1644773386056,0.68629978,2884.9,2884.7,0.00085506]
[1644773386257,0.67850348,2884.8,2884.7,0.00085506]
[1644773387257,0.86691,2885.0,2884.7,0.00085506]
[1644773387258,0.68979607,2884.9,2884.7,0.00085506]
[1644773387458,0.67850348,2884.8,2884.7,0.00085506]
[1644773389306,1.5248735,2884.8,2884.7,0.00085506]
[1644773390611,1.52624883,2884.8,2884.7,0.00085506]
[1644773392062,4.91242769,2884.8,2884.7,0.00085506]
[1644773393058,6.64655769,2884.8,2884.7,0.00085506]
[1644773393261,1.52624883,2884.8,2884.7,0.00085506]
[1644773393458,5.01844169,2884.8,2884.7,0.00085506]
[1644773394059,1.52624883,2884.8,2884.7,0.00085506]
[1644773395908,3.26034883,2884.8,2884.7,0.00167843]
[1644773396105,6.6652146,2884.8,2884.7,0.00167843]
[1644773396908,1.52624883,2884.8,2884.7,0.00167843]
[1644773399004,2.1874989,2884.8,2884.7,0.00167843]
[1644773399259,1.52624883,2884.8,2884.7,0.00167843]
[1644773400965,3.26048883,2884.8,2884.7,0.00085506]
[1644773405306,2.39323883,2884.8,2884.7,0.00085506]
[1644773407458,2.39323883,2884.8,2884.6,0.00082523]
[1644773407459,0.00035165,2884.7,2884.6,0.00082523]
[1644773407661,0.67885513,2884.7,2884.6,0.00082523]
[1644773407860,2.41306513,2884.7,2884.2,0.70594399]
[1644773408059,0.86708,2884.6,2884.2,0.70594399]
[1644773408860,0.86711,2884.6,2884.1,0.00998101]
[1644773409059,0.86711,2884.6,2884.3,0.51334966]
[1644773409265,0.00035165,2884.7,2884.3,1.02669932]
[1644773409463,0.00035165,2884.7,2884.4,0.1733]
[1644773410263,0.00035165,2884.7,2884.4,1.04008]
[1644773410514,0.00035165,2884.7,2884.4,2.04008]
[1644773410705,0.00035165,2884.7,2884.4,1.86678]
[1644773411507,0.00035165,2884.7,2884.5,0.6]
[1644773411706,0.00035165,2884.7,2884.5,0.1733]
[1644773411905,0.00035165,2884.7,2884.5,0.4233]
[1644773412207,0.00035165,2884.7,2884.5,0.1233]
[1644773412805,0.00035165,2884.7,2884.4,2.90697]
[1644773413207,0.00035165,2884.7,2884.4,2.04008]
[1644773413505,0.00035165,2884.7,2884.5,0.6]
[1644773413706,0.00035165,2884.7,2884.5,1.46684]
[1644773413909,0.00035165,2884.7,2884.5,5.0209355]
[1644773414355,0.00035165,2884.7,2884.6,0.51334966]
[1644773414555,0.00035165,2884.7,2884.6,1.02669932]
[1644773415060,0.00035165,2884.7,2884.6,4.43885707]
[1644773415558,0.00035165,2884.7,2884.6,5.43885707]
[1644773415756,0.00139439,2884.7,2884.6,5.43885707]
[1644773415956,0.00139439,2884.7,2884.6,6.47896707]
[1644773417160,0.00139439,2884.7,2884.6,6.97996707]
[1644773418011,0.00139439,2884.7,2884.6,3.56780932]
[1644773420505,0.00239671,2884.7,2884.6,3.56780932]
[1644773420906,0.65416993,2885.6,2885.0,0.86665]
[1644773421106,0.04052315,2885.6,2885.0,1.16665]
[1644773421407,0.04052315,2885.6,2885.0,1.3]
[1644773421606,0.04052315,2885.6,2885.3,1.02669932]
[1644773421864,0.0037072,2885.8,2885.4,0.8665]
[1644773422063,0.0405252,2885.9,2885.4,1.73303]
[1644773422258,0.0405252,2885.9,2885.4,2.73303]
[1644773422557,0.0405252,2885.9,2885.4,1.86653]
[1644773422756,0.0405252,2885.9,2885.4,2.16653]
[1644773422956,0.1768072,2886.0,2885.4,0.59323124]
[1644773423157,0.0037072,2886.0,2885.4,0.59323124]
[1644773423359,0.01014056,2885.8,2885.4,1.45976124]
[1644773423558,0.01014056,2885.8,2885.5,0.86651]
[1644773423759,0.01014056,2885.8,2885.5,1.16651]
[1644773423959,0.01014056,2885.8,2885.5,0.3]
[1644773424368,0.88537396,2886.3,2885.4,2.92614124]
[1644773424562,0.01014131,2885.8,2885.5,2.59934]
[1644773424960,0.01014131,2885.8,2885.6,1.0]
[1644773425160,0.01014131,2885.8,2885.7,0.3]
[1644773425360,0.0037072,2886.3,2885.7,0.3]
[1644773425803,0.01014126,2885.8,2885.7,0.3]
[1644773426201,0.01014126,2885.8,2885.7,1.3]
[1644773426403,0.0091467,2885.8,2885.7,1.3]
[1644773426602,0.04426616,2886.3,2885.7,1.3]
[1644773426603,0.0037072,2886.3,2885.7,1.3]
[1644773426803,0.8701972,2886.3,2885.7,2.16646]
[1644773427009,0.0037072,2886.3,2886.0,1.02669932]
[1644773427205,0.88166676,2886.5,2886.0,1.02669932]
[1644773427206,0.0037072,2886.5,2886.0,1.02669932]
[1644773427507,0.0037072,2886.5,2886.0,1.62669932]
[1644773428104,0.63464138,2886.5,2886.1,0.86636]
[1644773428306,0.63093418,2886.4,2886.1,1.16636]
[1644773428503,0.63093418,2886.3,2886.1,1.16636]
[1644773428703,0.63093418,2886.3,2886.1,2.16636]
[1644773428904,0.63093418,2886.2,2886.1,2.16636]
[1644773429354,0.63093418,2886.2,2886.1,4.76505]
[1644773430757,0.63214319,2886.2,2886.1,3.8988]
[1644773431159,0.63214319,2886.2,2886.1,4.74077721]
[1644773431361,0.00120901,2886.2,2886.1,4.74077721]
[1644773431760,0.00120901,2886.2,2886.1,0.84197721]
[1644773431958,0.00120901,2886.2,2885.9,2.9383]
[1644773432162,0.00120901,2886.2,2886.1,0.51334966]
[1644773432358,0.00120901,2886.2,2886.1,1.02669932]
[1644773432759,0.62216377,2886.2,2886.1,0.92669932]
[1644773433020,0.00120901,2886.2,2886.1,0.92669932]
[1644773433209,0.62216377,2886.2,2886.1,0.92669932]
[1644773433608,1.71689222,2886.2,2886.1,0.92669932]
[1644773434608,0.62216377,2886.2,2886.1,0.92669932]
[1644773435010,0.47216377,2886.2,2886.1,0.92669932]
[1644773435211,0.0037072,2886.4,2886.1,0.92669932]
[1644773435212,0.1731,2886.3,2886.1,0.92669932]
[1644773435410,0.18384652,2886.3,2886.1,0.92669932]
[1644773436010,0.00120901,2886.2,2886.1,0.92754948]
[1644773437257,0.00120901,2886.2,2886.1,0.00085016]
[1644773437462,0.00120901,2886.2,2886.1,0.41419982]
[1644773437658,0.00120901,2886.2,2886.1,0.92754948]
[1644773438658,0.17430901,2886.2,2886.1,0.92754948]
[1644773440708,0.00120901,2886.2,2886.1,0.92754948]
[1644773442907,0.00120901,2886.2,2886.1,0.1470688]
[1644773443108,0.00120901,2886.2,2885.6,0.51655318]
[1644773443309,0.86655,2886.1,2885.6,0.51655318]
[1644773443508,0.0037072,2886.0,2885.9,0.1470688]
[1644773443710,0.00491621,2886.2,2885.9,0.1470688]
[1644773443911,0.01077911,2886.0,2885.9,0.1470688]
[1644773444110,0.01077911,2886.0,2885.9,1.0134288]
[1644773444554,0.01077911,2886.0,2885.9,3.0460888]
[1644773444754,0.00120901,2886.2,2885.9,2.7460888]
[1644773444956,0.01077906,2886.1,2885.9,2.0134288]
[1644773445158,0.01077906,2886.1,2886.0,1.0]
[1644773445355,0.01077906,2886.1,2885.9,2.0134288]
[1644773445755,0.01077906,2886.1,2886.0,0.86636]
[1644773446057,0.00120901,2886.2,2886.0,1.73268]
[1644773446257,0.01078147,2886.1,2886.0,2.73268]
[1644773447056,0.00120901,2886.2,2886.0,2.73268]
[1644773447256,0.00120901,2886.2,2886.0,2.90578]
[1644773447458,0.01199043,2886.2,2886.0,2.90578]
[1644773447762,0.01199043,2886.2,2886.1,0.801]
[1644773448018,0.01199043,2886.2,2886.1,0.9741]
[1644773448407,0.00120901,2886.2,2886.1,0.9741]
[1644773448806,0.00120901,2886.2,2886.1,1.1211688]
[1644773449208,0.00120901,2886.2,2886.1,1.99489283]
[1644773449406,0.00120901,2886.2,2886.1,2.1211688]
[1644773450508,0.01079281,2886.3,2886.2,0.86616]
[1644773450708,0.0037072,2887.3,2886.2,5.86616]
[1644773450909,0.0037072,2887.3,2886.5,1.73223]
[1644773451109,0.0037072,2887.3,2886.6,0.3]
[1644773451311,0.04316476,2886.7,2886.6,0.3]
[1644773451760,0.0037072,2887.3,2886.7,4.35]
[1644773451965,0.0037072,2887.3,2886.7,6.55658093]
[1644773452160,0.0037072,2887.3,2886.8,1.0]
[1644773452161,0.04316268,2887.2,2886.8,1.0]
[1644773452361,0.04316268,2887.2,2886.8,2.101]
[1644773452866,0.04316268,2887.2,2886.9,1.7319]
[1644773453062,0.64368528,2887.4,2887.0,5.1]
[1644773453264,0.00371083,2887.5,2887.2,2.95]
[1644773453464,0.03114367,2887.6,2887.2,3.451]
[1644773453661,0.03114367,2887.6,2887.3,1.0]
[1644773453860,0.03114367,2887.6,2887.2,0.501]
[1644773454061,0.03114367,2887.6,2887.4,0.4470688]
[1644773454261,0.0173423,2887.9,2887.4,0.1470688]
[1644773454961,0.57310958,2887.8,2887.4,0.1470688]
[1644773455261,0.0173423,2887.9,2887.4,0.1470688]
[1644773455520,0.57245986,2887.8,2887.4,0.1470688]
[1644773456710,0.0173423,2887.9,2887.4,0.1470688]
[1644773456911,0.01128527,2887.7,2887.4,1.0130188]
[1644773457312,0.01128527,2887.7,2887.4,0.1470688]
[1644773457910,0.0173423,2887.9,2887.4,0.1470688]
[1644773458116,0.01128533,2887.7,2887.4,0.1470688]
[1644773459257,0.0173423,2887.9,2887.6,0.1470688]
[1644773459458,0.01128533,2887.7,2887.6,0.1470688]
[1644773460358,0.0173423,2887.9,2887.6,0.1470688]
[1644773460560,0.01194493,2887.8,2887.6,0.1470688]
[1644773460765,0.01194493,2887.8,2887.6,0.4470688]
[1644773461559,0.00122493,2887.8,2887.6,0.4470688]
[1644773461759,0.01194488,2887.8,2887.6,0.1470688]
[1644773463914,0.00122493,2887.8,2887.6,0.1470688]
[1644773464111,0.01235468,2887.8,2887.6,0.1470688]
[1644773464312,0.01235468,2887.8,2887.4,1.73188]
[1644773464513,0.01235468,2887.8,2887.4,2.03188]
[1644773464712,0.01235468,2887.8,2887.6,0.1470688]
[1644773465112,0.00122493,2887.8,2887.6,0.1470688]
[1644773465518,0.01235468,2887.8,2887.6,0.03299518]
[1644773466315,0.00122493,2887.8,2887.6,0.03299518]
[1644773466513,0.1731,2887.7,2887.6,0.03299518]
[1644773467761,0.56306086,2887.8,2887.6,0.03299518]
[1644773467762,0.01251009,2887.8,2887.6,0.03299518]
[1644773468861,0.00122493,2887.8,2887.6,0.03299518]
[1644773469062,0.01251003,2887.8,2887.6,0.03299518]
[1644773469661,0.01251003,2887.8,2887.4,3.4415075]
[1644773469861,0.01251003,2887.8,2887.7,0.03299518]
[1644773470062,0.00122493,2887.8,2887.7,0.03299518]
[1644773470264,0.01251003,2887.8,2887.7,0.03299518]
[1644773470708,0.0112851,2887.8,2887.7,0.03299518]
[1644773471111,0.0173423,2887.9,2887.7,0.03299518]
[1644773471509,0.02862724,2887.9,2887.7,0.03299518]
[1644773472309,0.0173423,2887.9,2887.7,0.03299518]
[1644773472711,0.02862718,2887.9,2887.7,0.03299518]
[1644773473412,0.02862718,2887.9,2887.7,0.89883518]
[1644773473618,0.0173423,2887.9,2887.7,1.76471518]
[1644773473810,0.02862718,2887.9,2887.7,2.53781518]
[1644773474258,0.02862718,2887.9,2887.8,1.0]
[1644773474658,0.02862718,2887.9,2887.8,1.501]
[1644773474961,0.0173423,2887.9,2887.8,1.501]
[1644773475457,0.0173423,2887.9,2887.8,1.53399518]
[1644773476264,0.0173423,2887.9,2887.8,2.43981766]
[1644773476462,0.0172198,2888.3,2887.9,4.8]
[1644773476661,0.8658,2888.8,2888.2,1.73112]
[1644773476861,0.8658,2888.8,2888.3,3.39254385]
[1644773477060,0.8658,2888.8,2888.2,3.83212]
[1644773477260,0.8658,2888.8,2888.2,2.96656]
[1644773477462,0.66561825,2889.4,2888.2,2.96656]
[1644773477463,0.0066064,2889.4,2888.2,3.12923997]
[1644773477662,0.00372727,2888.7,2888.3,1.73127]
[1644773477860,0.55123453,2889.2,2888.3,1.86562]
[1644773478109,0.55123453,2889.1,2888.3,1.86562]
[1644773478310,0.5549618,2889.0,2888.3,7.09678]
[1644773478515,0.00372727,2889.3,2888.4,0.6739]
[1644773478710,0.00372727,2888.9,2888.6,0.8654]
[1644773478914,0.55134775,2889.3,2888.6,1.8654]
[1644773479111,0.00372727,2889.2,2888.7,0.3]
[1644773479310,0.00372727,2889.2,2888.7,2.03087]
[1644773479511,0.00372727,2889.2,2888.7,1.73087]
[1644773479709,0.00372727,2889.2,2888.7,2.89631]
[1644773479911,0.00773035,2889.1,2888.8,1.0]
[1644773480113,0.00773035,2889.1,2888.8,1.3]
[1644773480317,0.00773035,2889.1,2888.9,2.03074]
[1644773480511,0.00773035,2889.1,2889.0,0.03299518]
[1644773480723,0.0066064,2889.4,2889.0,3.46927723]
[1644773480912,0.54746012,2889.3,2889.1,1.0]
[1644773481110,0.54746012,2889.3,2889.1,1.3]
[1644773481313,0.54746012,2889.3,2889.2,4.28697437]
[1644773481517,0.54746012,2889.3,2889.2,0.86539]
[1644773481758,0.54746012,2889.3,2889.2,1.0]
[1644773481959,0.54746012,2889.3,2889.1,1.6]
[1644773482360,0.54746012,2889.3,2889.1,2.46541]
[1644773482558,0.54746012,2889.3,2889.1,1.6]
[1644773482759,0.54746012,2889.3,2889.1,0.6]
[1644773482960,0.54746012,2889.3,2889.1,0.3]
[1644773483360,0.55876844,2889.3,2889.0,2.19845518]
[1644773483561,0.55876844,2889.3,2889.1,3.40104332]
[1644773483562,0.01130832,2889.3,2889.1,3.40104332]
[1644773483761,0.01130832,2889.3,2889.0,2.19845518]
[1644773483960,0.01130832,2889.3,2889.2,1.0]
[1644773484164,0.54740953,2889.3,2889.0,5.6133569]
[1644773484363,0.0066064,2889.4,2889.0,5.6133569]
[1644773484563,0.53573969,2889.3,2889.1,0.86539]
[1644773484861,0.01791466,2889.4,2889.1,0.86539]
[1644773485066,0.01791466,2889.4,2889.0,5.58611022]
[1644773485067,0.48574363,2889.3,2889.0,1.33299518]
[1644773485521,0.48693371,2889.3,2888.8,0.65339764]
[1644773485710,0.49066098,2889.3,2888.4,0.86557]
[1644773485909,0.01622573,2889.3,2888.3,3.6129]
[1644773486110,0.01249846,2889.3,2888.3,3.6129]
[1644773486308,0.01249846,2889.3,2888.3,4.7767]
[1644773486511,0.01249846,2889.3,2888.4,0.86563]
[1644773486714,0.00119008,2889.3,2888.7,0.86546]
[1644773487109,0.01073616,2888.9,2888.8,0.3]
[1644773487510,0.01073616,2888.9,2888.8,1.16545]
[1644773487911,0.01073616,2888.9,2888.8,2.16545]
[1644773488110,0.01073611,2889.0,2888.8,2.16546]
[1644773488311,0.01073611,2889.0,2888.8,3.03086]
[1644773488511,0.01073611,2889.0,2888.9,3.53908114]
[1644773488711,0.01073611,2889.0,2888.9,5.26985114]
[1644773488910,0.01073611,2889.0,2888.9,6.45802513]
[1644773489110,0.00119008,2889.3,2888.9,3.03077]
[1644773489361,0.00119008,2889.3,2889.0,1.0]
[1644773489362,0.01073601,2889.1,2889.0,1.0]
[1644773489860,0.01073601,2889.1,2889.0,1.1729]
[1644773490258,0.01073601,2889.1,2888.8,1.3]
[1644773490460,0.00119008,2889.3,2888.9,0.86551]
[1644773490659,0.01192212,2889.2,2888.8,1.3]
[1644773490860,0.01192212,2889.2,2888.8,1.4729]
[1644773491461,0.00112519,2889.2,2888.8,1.4729]
[1644773491661,0.00112519,2889.2,2888.9,0.8655]
[1644773491867,0.01079698,2889.1,2888.9,0.8655]
[1644773492259,0.01079698,2889.1,2888.9,1.73097]
[1644773492461,0.01079698,2889.1,2888.8,0.1729]
[1644773492662,0.01079698,2889.1,2888.1,0.1729]
[1644773492860,0.17402519,2889.2,2888.2,0.1729]
[1644773493108,0.17402519,2889.2,2888.0,4.2432]
[1644773493109,0.01079698,2889.1,2888.0,4.4161]
[1644773493309,0.01452425,2889.1,2888.1,0.8657]
[1644773493509,1.16980159,2889.0,2888.1,0.8657]
[1644773493708,0.00372727,2888.9,2888.1,1.73143]
[1644773494309,0.01130688,2888.7,2888.1,1.73143]
[1644773494609,0.01130688,2888.7,2888.1,5.07317311]
[1644773494807,0.01130688,2888.7,2888.0,4.4161]